fUSD/lending_fUSD_20250806
["ID","MTS","AMOUNT","RATE_DAILY","PERIOD"]
[377566770,1754442735445,-1290.39,0.0003726,14]
[377566771,1754442735454,-1328.676612,0.0003726,14]
[377566772,1754442735464,-400.0,0.0003726,14]
[377566773,1754442735474,-400.0,0.0003726,14]
[377566774,1754442735483,-400.0,0.0003726,14]
[377566775,1754442735492,-400.0,0.0003726,14]
[377566776,1754442735501,-437.13,0.0003726,14]
[377566777,1754442735510,-1868.41,0.0003726,14]
[377566778,1754442735519,-400.0,0.0003726,14]
[377566779,1754442735528,-400.0,0.0003726,14]
[377566780,1754442735538,-935.04,0.0003726,14]
[377566781,1754442735547,-400.0,0.0003726,14]
[377566782,1754442735556,-400.0,0.0003726,14]
[377566783,1754442735565,-1708.33,0.0003726,14]
[377566784,1754442735574,-1761.05,0.0003726,14]
[377566785,1754442735583,-1704.71,0.0003726,14]
[377566786,1754442735593,-672.68,0.0003726,14]
[377566787,1754442735602,-1762.0,0.0003726,14]
[377566788,1754442735611,-527.32,0.0003726,14]
[377566789,1754442735620,-183.443369,0.0003726,14]
[377566790,1754442735629,-994.04,0.0003726,14]
[377566791,1754442735638,-2290.75,0.0003726,14]
[377566792,1754442735647,-400.0,0.0003726,14]
[377566793,1754442735656,-400.0,0.0003726,14]
[377566794,1754442735665,-400.0,0.0003726,14]
[377566795,1754442735674,-209.62277002,0.0003726,14]
[377566796,1754442735683,-2469.75,0.0003726,14]
[377566797,1754442735692,-150.613933,0.0003726,14]
[377566798,1754442735701,-400.0,0.0003726,14]
[377566799,1754442735712,-400.0,0.0003726,14]
[377566800,1754442735720,-400.0,0.0003726,14]
[377566801,1754442735729,-2205.99,0.0003726,14]
[377566802,1754442735738,-400.0,0.0003726,14]
[377566803,1754442735748,-400.0,0.0003726,14]
[377566804,1754442735757,-779.79,0.0003726,14]
[377566805,1754442735766,-471.80905337,0.0003726,14]
[377566806,1754442735775,-1057.03,0.0003726,14]
[377566807,1754442735785,-1461.09,0.0003726,14]
[377566808,1754442735794,-400.0,0.0003726,14]
[377566809,1754442735803,-2247.66,0.0003726,14]
[377566810,1754442735812,-400.0,0.0003726,14]
[377566811,1754442735820,-2509.3,0.0003726,14]
[377566812,1754442735830,-1264.35,0.0003726,14]
[377566813,1754442735838,-579.3,0.0003726,14]
[377566814,1754442735847,-2543.8,0.0003726,14]
[377566815,1754442735856,-927.28,0.0003726,14]
[377566816,1754442735865,-400.0,0.0003726,14]
[377566817,1754442735874,-2035.35,0.0003726,14]
[377566818,1754442735883,-1617.19,0.0003726,14]
[377566819,1754442735891,-430.86,0.0003726,14]
[377566820,1754442735901,-400.0,0.0003726,14]
[377566821,1754442735911,-2035.44,0.0003726,14]
[377566822,1754442735920,-400.0,0.0003726,14]
[377566823,1754442735929,-742.22,0.0003726,14]
[377566824,1754442735938,-1576.22,0.0003726,14]
[377566825,1754442735948,-1564.14,0.0003726,14]
[377566826,1754442735958,-400.0,0.0003726,14]
[377566827,1754442735967,-1123.31,0.0003726,14]
[377566828,1754442735976,-423.59,0.0003726,14]
[377566829,1754442735986,-678.6,0.0003726,14]
[377566830,1754442735995,-1765.72,0.0003726,14]
[377566831,1754442736004,-1488.56,0.0003726,14]
[377566832,1754442736013,-1011.21,0.0003726,14]
[377566833,1754442736022,-523.37,0.0003726,14]
[377566834,1754442736031,-400.0,0.0003726,14]
[377566835,1754442736042,-409.96,0.0003726,14]
[377566836,1754442736052,-1713.82,0.0003726,14]
[377566837,1754442736062,-1839.78,0.0003726,14]
[377566838,1754442736071,-790.57,0.0003726,14]
[377566839,1754442736080,-3679.84,0.0003726,14]
[377566840,1754442736089,-2131.4,0.0003726,14]
[377566841,1754442736099,-1711.85,0.0003726,14]
[377566842,1754442736108,-400.0,0.0003726,14]
[377566843,1754442736117,-1388.38,0.0003726,14]
[377566844,1754442736126,-1776.87,0.0003726,14]
[377566845,1754442736135,-1649.7,0.0003726,14]
[377566846,1754442736144,-1115.45,0.0003726,14]
[377566847,1754442736153,-400.0,0.0003726,14]
[377566848,1754442736162,-705.6,0.0003726,14]
[377566849,1754442736174,-963.25,0.0003726,14]
[377566850,1754442736183,-400.0,0.0003726,14]
[377566851,1754442736195,-2393.93,0.0003726,14]
[377566852,1754442736205,-724.03,0.0003726,14]
[377566853,1754442736216,-400.0,0.0003726,14]
[377566854,1754442736226,-2090.88,0.0003726,14]
[377566855,1754442736239,-497.84,0.0003726,14]
[377566856,1754442736250,-250.0,0.0003726,14]
[377566857,1754442736260,-400.0,0.0003726,14]
[377566858,1754442736271,-797.29,0.0003726,14]
[377566859,1754442736280,-496.79,0.0003726,14]
[377566860,1754442736289,-1967.34,0.0003726,14]
[377566861,1754442736298,-400.0,0.0003726,14]
[377566862,1754442736307,-400.0,0.0003726,14]
[377566863,1754442736319,-400.0,0.0003726,14]
[377566864,1754442736329,-602.25,0.0003726,14]
[377566865,1754442736339,-2237.67,0.0003726,14]
[377566866,1754442736348,-534.96,0.0003726,14]
[377566867,1754442736358,-400.0,0.0003726,14]
[377566868,1754442736367,-400.0,0.0003726,14]
[377566869,1754442736377,-1943.05,0.0003726,14]
[377566870,1754442736386,-525.4,0.0003726,14]
[377566871,1754442736395,-400.0,0.0003726,14]
[377566872,1754442736404,-1777.23,0.0003726,14]
[377566873,1754442736414,-400.0,0.0003726,14]
[377566874,1754442736424,-400.0,0.0003726,14]
[377566875,1754442736433,-400.0,0.0003726,14]
[377566876,1754442736443,-151.0,0.0003726,7]
[377566877,1754442736452,-1704.16,0.0003726,14]
[377566878,1754442736462,-458.11,0.0003726,14]
[377566879,1754442736471,-755.14,0.0003726,14]
[377566880,1754442736481,-400.0,0.0003726,14]
[377566881,1754442736491,-1361.3,0.0003726,14]
[377566882,1754442736500,-1657.6,0.0003726,14]
[377566883,1754442736510,-400.0,0.0003726,14]
[377566884,1754442736519,-464.59,0.0003726,14]
[377566885,1754442736528,-1359.03,0.0003726,14]
[377566886,1754442736539,-928.51,0.0003726,14]
[377566887,1754442736548,-447.16,0.0003726,14]
[377566888,1754442736557,-935.48,0.0003726,14]
[377566889,1754442736567,-400.0,0.0003726,14]
[377566890,1754442736576,-1737.65,0.0003726,14]
[377566891,1754442736589,-363.91122054,0.0003726,14]
[377566892,1754442736605,-475.44,0.0003726,14]
[377566893,1754442736614,-964.89,0.0003726,14]
[377566894,1754442736623,-400.0,0.0003726,14]
[377566895,1754442736633,-2063.67,0.0003726,14]
[377566896,1754442736642,-1013.66,0.0003726,14]
[377566897,1754442736651,-1126.47,0.0003726,14]
[377566898,1754442736660,-2309.93,0.0003726,14]
[377566899,1754442736669,-984.53,0.0003726,14]
[377566900,1754442736679,-1638.91,0.0003726,14]
[377566901,1754442736688,-1286.0,0.0003726,14]
[377566902,1754442736699,-400.0,0.0003726,14]
[377566903,1754442736708,-1466.99,0.0003726,14]
[377566904,1754442736718,-857.1,0.0003726,14]
[377566905,1754442736727,-1077.2,0.0003726,14]
[377566906,1754442736736,-962.77,0.0003726,14]
[377566907,1754442736745,-400.0,0.0003726,14]
[377566908,1754442736755,-400.0,0.0003726,14]
[377566909,1754442736764,-1979.59,0.0003726,14]
[377566910,1754442736773,-1728.26,0.0003726,14]
[377566911,1754442736782,-1044.87,0.0003726,14]
[377566912,1754442736792,-1048.15,0.0003726,14]
[377566913,1754442736801,-1020.28,0.0003726,14]
[377566914,1754442736811,-1132.04,0.0003726,14]
[377566915,1754442736823,-400.0,0.0003726,14]
[377566916,1754442736832,-400.0,0.0003726,14]
[377566917,1754442736841,-832.44,0.0003726,14]
[377566918,1754442736851,-668.93,0.0003726,14]
[377566919,1754442736862,-939.42,0.0003726,14]
[377566920,1754442736871,-2214.94,0.0003726,14]
[377566921,1754442736881,-1666.74,0.0003726,14]
[377566922,1754442736890,-400.0,0.0003726,14]
[377566923,1754442736900,-2316.2,0.0003726,14]
[377566924,1754442736909,-923.76,0.0003726,14]
[377566925,1754442736919,-728.39,0.0003726,14]
[377566926,1754442736928,-400.0,0.0003726,14]
[377566927,1754442736937,-1040.17,0.0003726,14]
[377566928,1754442736947,-258.65269818,0.0003726,14]
[377566929,1754442736957,-400.0,0.0003726,14]
[377566930,1754442736967,-1498.11,0.0003726,14]
[377566931,1754442736977,-2864.39,0.0003726,14]
[377566932,1754442736986,-1180.49,0.0003726,14]
[377566933,1754442736996,-400.0,0.0003726,14]
[377566934,1754442737005,-1311.83,0.0003726,14]
[377566935,1754442737015,-400.0,0.0003726,14]
[377566936,1754442737024,-1834.0,0.0003726,14]
[377566937,1754442737033,-400.0,0.0003726,14]
[377566938,1754442737043,-1955.23,0.0003726,14]
[377566939,1754442737052,-538.12,0.0003726,14]
[377566940,1754442737069,-1244.43,0.0003726,14]
[377566941,1754442737083,-1662.24,0.0003726,14]
[377566942,1754442737091,-657.65,0.0003726,14]
[377566943,1754442737101,-815.87,0.0003726,14]
[377566944,1754442737110,-953.1,0.0003726,14]
[377566945,1754442737119,-400.0,0.0003726,14]
[377566946,1754442737129,-563.55,0.0003726,14]
[377566947,1754442737138,-185.40266576,0.0003726,14]
[377566948,1754442737147,-400.0,0.0003726,14]
[377566949,1754442737156,-914.6,0.0003726,14]
[377566950,1754442737165,-400.0,0.0003726,14]
[377566951,1754442737175,-1102.55,0.0003726,14]
[377566952,1754442737184,-1700.2,0.0003726,14]
[377566953,1754442737193,-525.87,0.0003726,14]
[377566954,1754442737203,-1677.48,0.0003726,14]
[377566955,1754442737212,-615.99,0.0003726,14]
[377566956,1754442737222,-1122.22,0.0003726,14]
[377566957,1754442737233,-228.08739362,0.0003726,14]
[377566958,1754442737244,-691.75,0.0003726,14]
[377566959,1754442737253,-1339.53,0.0003726,14]
[377566960,1754442737262,-400.0,0.0003726,14]
[377566961,1754442737272,-1673.07,0.0003726,14]
[377566962,1754442737282,-3039.76,0.0003726,14]
[377566963,1754442737291,-1742.18,0.0003726,14]
[377566964,1754442737300,-3124.83,0.0003726,14]
[377566965,1754442737309,-400.0,0.0003726,14]
[377566966,1754442737320,-2935.07,0.0003726,14]
[377566967,1754442737330,-400.0,0.0003726,14]
[377566968,1754442737340,-400.0,0.0003726,14]
[377566969,1754442737349,-1838.67,0.0003726,14]
[377566970,1754442737358,-609.9,0.0003726,14]
[377566971,1754442737368,-400.0,0.0003726,14]
[377566972,1754442737377,-400.0,0.0003726,14]
[377566973,1754442737386,-991.95,0.0003726,14]
[377566974,1754442737397,-1655.86,0.0003726,14]
[377566975,1754442737406,-3327.96,0.0003726,14]
[377566976,1754442737415,-1352.76,0.0003726,14]
[377566977,1754442737425,-566.14,0.0003726,14]
[377566978,1754442737435,-686.21,0.0003726,14]
[377566979,1754442737444,-2954.23,0.0003726,14]
[377566980,1754442737454,-400.0,0.0003726,14]
[377566981,1754442737463,-438.37,0.0003726,14]
[377566982,1754442737473,-1748.91,0.0003726,14]
[377566983,1754442737482,-2547.69,0.0003726,14]
[377566984,1754442737491,-400.0,0.0003726,14]
[377566985,1754442737500,-3490.04,0.0003726,14]
[377566986,1754442737510,-400.0,0.0003726,14]
[377566987,1754442737519,-1448.31,0.0003726,14]
[377566988,1754442737529,-400.0,0.0003726,14]
[377566989,1754442737538,-1267.64,0.0003726,14]
[377566990,1754442737548,-400.0,0.0003726,14]
[377566991,1754442737558,-1802.79,0.0003726,14]
[377566992,1754442737568,-784.29,0.0003726,14]
[377566993,1754442737578,-400.0,0.0003726,14]
[377566994,1754442737587,-1837.22,0.0003726,14]
[377566995,1754442737597,-400.0,0.0003726,14]
[377566996,1754442737607,-400.0,0.0003726,14]
[377566997,1754442737616,-634.12,0.0003726,14]
[377566998,1754442737626,-3271.39,0.0003726,14]
[377566999,1754442737636,-1431.01,0.0003726,14]
[377567000,1754442737646,-423.14,0.0003726,14]
[377567001,1754442737655,-1890.7,0.0003726,14]
[377567002,1754442737665,-4030.7,0.0003726,14]
[377567003,1754442737675,-518.39,0.0003726,14]
[377567004,1754442737684,-799.06,0.0003726,14]
[377567005,1754442737693,-1061.15,0.0003726,14]
[377567006,1754442737703,-400.0,0.0003726,14]
[377567007,1754442737712,-2300.35,0.0003726,14]
[377567008,1754442737722,-1973.9,0.0003726,14]
[377567009,1754442737732,-414.66,0.0003726,14]
[377567010,1754442737742,-649.25,0.0003726,14]
[377567011,1754442737751,-400.0,0.0003726,14]
[377567012,1754442737761,-2403.69,0.0003726,14]
[377567013,1754442737770,-347.43496302,0.0003726,14]
[377567014,1754442737780,-1824.64,0.0003726,14]
[377567015,1754442737789,-400.0,0.0003726,14]
[377567016,1754442737799,-1727.1,0.0003726,14]
[377567017,1754442737808,-1000.4,0.0003726,14]
[377567018,1754442737817,-1599.77,0.0003726,14]
[377567019,1754442737826,-538.04921823,0.0003726,14]
[377567020,1754442737836,-1144.07,0.0003726,14]
[377567021,1754442737845,-1861.93,0.0003726,14]
[377567022,1754442737855,-1695.92,0.0003726,14]
[377567023,1754442737865,-4450.65,0.0003726,14]
[377567024,1754442737874,-1706.8,0.0003726,14]
[377567025,1754442737884,-242.695014,0.0003726,7]
[377567026,1754442737894,-779.66,0.0003726,14]
[377567027,1754442737903,-932.87,0.0003726,14]
[377567028,1754442737913,-400.0,0.0003726,14]
[377567029,1754442737923,-2337.94,0.0003726,14]
[377567030,1754442737932,-421.9,0.0003726,14]
[377567031,1754442737942,-951.39,0.0003726,14]
[377567032,1754442737952,-1430.5,0.0003726,14]
[377567033,1754442737962,-242.695014,0.0003726,7]
[377567034,1754442737972,-400.0,0.0003726,14]
[377567035,1754442737983,-575.559924,0.0003726,7]
[377567036,1754442737995,-400.0,0.0003726,14]
[377567037,1754442738005,-589.79,0.0003726,14]
[377567038,1754442738015,-1533.82,0.0003726,14]
[377567039,1754442738025,-400.0,0.0003726,14]
[377567040,1754442738034,-2089.35,0.0003726,14]
[377567041,1754442738044,-2493.45,0.0003726,14]
[377567042,1754442738054,-2218.99,0.0003726,14]
[377567043,1754442738063,-841.47,0.0003726,14]
[377567044,1754442738073,-400.0,0.0003726,7]
[377567045,1754442738083,-868.89,0.0003726,14]
[377567046,1754442738092,-3396.05,0.0003726,14]
[377567047,1754442738101,-895.39,0.0003726,14]
[377567048,1754442738111,-575.559924,0.0003726,7]
[377567049,1754442738120,-1716.54,0.0003726,14]
[377567050,1754442738130,-400.0,0.0003726,14]
[377567051,1754442738140,-400.0,0.0003726,14]
[377567052,1754442738150,-1340.56,0.0003726,14]
[377567053,1754442738173,-400.0,0.0003726,14]
[377567054,1754442738184,-1353.01,0.0003726,14]
[377567055,1754442738194,-2276.37,0.0003726,14]
[377567056,1754442738203,-1603.32,0.0003726,14]
[377567057,1754442738213,-400.0,0.0003726,14]
[377567058,1754442738223,-583.8,0.0003726,14]
[377567059,1754442738235,-1428.62,0.0003726,14]
[377567060,1754442738245,-1629.04,0.0003726,14]
[377567061,1754442738255,-2751.15,0.0003726,14]
[377567062,1754442738265,-400.0,0.0003726,14]
[377567063,1754442738275,-772.55,0.0003726,14]
[377567064,1754442738285,-878.31,0.0003726,14]
[377567065,1754442738294,-400.0,0.0003726,14]
[377567066,1754442738305,-1622.11,0.0003726,14]
[377567067,1754442738315,-444.96,0.0003726,14]
[377567068,1754442738325,-690.57,0.0003726,14]
[377567069,1754442738335,-2273.8,0.0003726,14]
[377567070,1754442738346,-5774.11,0.0003726,14]
[377567071,1754442738356,-1725.28,0.0003726,14]
[377567072,1754442738366,-1180.48,0.0003726,14]
[377567073,1754442738378,-1303.85,0.0003726,14]
[377567074,1754442738389,-2418.19,0.0003726,14]
[377567075,1754442738399,-1325.14,0.0003726,14]
[377567076,1754442738410,-1589.73,0.0003726,14]
[377567077,1754442738420,-1483.39,0.0003726,14]
[377567078,1754442738442,-1418.71,0.0003726,14]
[377567079,1754442738451,-1287.81,0.0003726,14]
[377567080,1754442738462,-1703.45,0.0003726,14]
[377567081,1754442738473,-400.0,0.0003726,14]
[377567082,1754442738482,-1498.57,0.0003726,14]
[377567083,1754442738492,-400.0,0.0003726,14]
[377567084,1754442738502,-821.53,0.0003726,14]
[377567085,1754442738513,-1983.78,0.0003726,14]
[377567086,1754442738523,-1679.65,0.0003726,14]
[377567087,1754442738534,-3157.63,0.0003726,14]
[377567088,1754442738543,-687.98,0.0003726,14]
[377567089,1754442738553,-2307.34,0.0003726,14]
[377567090,1754442738564,-2415.95,0.0003726,14]
[377567091,1754442738574,-2679.13,0.0003726,14]
[377567092,1754442738584,-3177.96,0.0003726,14]
[377567093,1754442738594,-747.81,0.0003726,14]
[377567094,1754442738604,-1953.14,0.0003726,14]
[377567095,1754442738613,-404.81,0.0003726,14]
[377567096,1754442738624,-428.72,0.0003726,14]
[377567097,1754442738634,-1927.57,0.0003726,14]
[377567098,1754442738644,-697.32,0.0003726,14]
[377567099,1754442738654,-400.0,0.0003726,14]
[377567100,1754442738664,-555.16,0.0003726,14]
[377567101,1754442738674,-1949.72,0.0003726,14]
[377567102,1754442738686,-1541.25,0.0003726,14]
[377567103,1754442738695,-400.0,0.0003726,14]
[377567104,1754442738706,-2417.38,0.0003726,14]
[377567105,1754442738716,-2048.47,0.0003726,14]
[377567106,1754442738727,-551.19,0.0003726,14]
[377567107,1754442738738,-2683.89,0.0003726,14]
[377567108,1754442738748,-2641.67,0.0003726,14]
[377567109,1754442738759,-1796.75,0.0003726,14]
[377567110,1754442738769,-1705.98,0.0003726,14]
[377567111,1754442738779,-2392.06,0.0003726,14]
[377567112,1754442738789,-1037.19,0.0003726,14]
[377567113,1754442738800,-527.27,0.0003726,14]
[377567114,1754442738809,-2665.06,0.0003726,14]
[377567115,1754442738820,-627.84,0.0003726,14]
[377567116,1754442738831,-1314.63,0.0003726,14]
[377567117,1754442738841,-400.0,0.0003726,14]
[377567118,1754442738852,-872.94,0.0003726,14]
[377567119,1754442738862,-427.48,0.0003726,14]
[377567120,1754442738872,-1376.11,0.0003726,14]
[377567121,1754442738882,-400.0,0.0003726,14]
[377567122,1754442738892,-1710.7,0.0003726,14]
[377567123,1754442738902,-2454.52,0.0003726,14]
[377567124,1754442738913,-765.61,0.0003726,14]
[377567125,1754442738922,-1470.65,0.0003726,14]
[377567126,1754442738932,-540.65,0.0003726,14]
[377567127,1754442738942,-2318.46,0.0003726,14]
[377567128,1754442738952,-400.0,0.0003726,14]
[377567129,1754442738963,-2952.63,0.0003726,14]
[377567130,1754442738973,-1988.57,0.0003726,14]
[377567131,1754442738983,-1460.27,0.0003726,14]
[377567132,1754442738994,-845.33,0.0003726,14]
[377567133,1754442739004,-400.0,0.0003726,14]
[377567134,1754442739013,-542.49,0.0003726,14]
[377567135,1754442739023,-2535.23,0.0003726,14]
[377567136,1754442739033,-438.71,0.0003726,14]
[377567137,1754442739301,-831.42,0.0003726,14]
[377567138,1754442739311,-430.36,0.0003726,14]
[377567139,1754442739321,-400.0,0.0003726,14]
[377567140,1754442739331,-638.79,0.0003726,14]
[377567141,1754442739340,-879.89,0.0003726,14]
[377567142,1754442739349,-411.62,0.0003726,14]
[377567143,1754442739359,-1118.12,0.0003726,14]
[377567144,1754442739369,-698.35,0.0003726,14]
[377567145,1754442739378,-1093.35,0.0003726,14]
[377567146,1754442739388,-1292.39,0.0003726,14]
[377567147,1754442739398,-1399.9,0.0003726,14]
[377567148,1754442739408,-861.63,0.0003726,14]
[377567149,1754442739417,-832.43,0.0003726,14]
[377567150,1754442739428,-865.54,0.0003726,14]
[377567151,1754442739437,-1672.62,0.0003726,14]
[377567152,1754442739447,-1841.38,0.0003726,14]
[377567153,1754442739457,-400.0,0.0003726,14]
[377567154,1754442739467,-400.0,0.0003726,14]
[377567155,1754442739476,-400.0,0.0003726,14]
[377567156,1754442739486,-2517.68,0.0003726,14]
[377567157,1754442739496,-1420.29,0.0003726,14]
[377567158,1754442739506,-828.45,0.0003726,14]
[377567159,1754442739515,-400.0,0.0003726,14]
[377567160,1754442739525,-766.86,0.0003726,14]
[377567161,1754442739534,-1217.7,0.0003726,14]
[377567162,1754442739544,-2523.08,0.0003726,14]
[377567163,1754442739553,-4582.75,0.0003726,14]
[377567164,1754442739563,-1353.33,0.0003726,14]
[377567165,1754442739573,-2391.18,0.0003726,14]
[377567166,1754442739582,-510.52,0.0003726,14]
[377567167,1754442739592,-1444.34,0.0003726,14]
[377567168,1754442739601,-2122.19,0.0003726,14]
[377567169,1754442739611,-800.48,0.0003726,14]
[377567170,1754442739621,-1505.83,0.0003726,14]
[377567171,1754442739630,-1675.42,0.0003726,14]
[377567172,1754442739641,-415.57,0.0003726,14]
[377567173,1754442739651,-3090.38,0.0003726,14]
[377567174,1754442739660,-990.08,0.0003726,14]
[377567175,1754442739670,-400.0,0.0003726,14]
[377567176,1754442739679,-2315.03,0.0003726,14]
[377567177,1754442739689,-2465.39,0.0003726,14]
[377567178,1754442739699,-400.0,0.0003726,14]
[377567179,1754442739708,-1639.8,0.0003726,14]
[377567180,1754442739719,-400.0,0.0003726,14]
[377567181,1754442739728,-1134.9,0.0003726,14]
[377567182,1754442739737,-2010.04,0.0003726,14]
[377567183,1754442739746,-1606.33,0.0003726,14]
[377567184,1754442739756,-2484.1,0.0003726,14]
[377567185,1754442739765,-400.0,0.0003726,14]
[377567186,1754442739774,-300.0,0.0003726,14]
[377567187,1754442739783,-400.0,0.0003726,14]
[377567188,1754442739793,-400.0,0.0003726,14]
[377567189,1754442739802,-1572.81,0.0003726,14]
[377567190,1754442739812,-400.0,0.0003726,14]
[377567191,1754442739821,-400.0,0.0003726,14]
[377567192,1754442739830,-400.0,0.0003726,14]
[377567193,1754442739840,-1857.15,0.0003726,14]
[377567194,1754442739850,-976.67,0.0003726,14]
[377567195,1754442739859,-1346.41,0.0003726,14]
[377567196,1754442739869,-744.01,0.0003726,14]
[377567197,1754442739878,-2216.89,0.0003726,14]
[377567198,1754442739888,-1925.81,0.0003726,14]
[377567199,1754442739897,-659.92,0.0003726,14]
[377567200,1754442739906,-400.0,0.0003726,14]
[377567201,1754442739916,-959.38,0.0003726,14]
[377567202,1754442739925,-400.0,0.0003726,14]
[377567203,1754442739935,-2901.33,0.0003726,14]
[377567204,1754442739944,-1076.24,0.0003726,14]
[377567205,1754442739954,-1714.16,0.0003726,14]
[377567206,1754442739964,-1429.75,0.0003726,14]
[377567207,1754442739974,-2076.05,0.0003726,14]
[377567208,1754442739983,-403.07,0.0003726,14]
[377567209,1754442739992,-1106.3,0.0003726,14]
[377567210,1754442740002,-1733.29,0.0003726,14]
[377567211,1754442740011,-71180.7,0.0003726,14]
[377567212,1754442740021,-803.68,0.0003726,14]
[377567213,1754442740031,-530.62,0.0003726,14]
[377567214,1754442740040,-400.0,0.0003726,14]
[377567215,1754442740050,-1403.33,0.0003726,14]
[377567216,1754442740059,-2097.99,0.0003726,14]
[377567217,1754442740068,-865.88,0.0003726,14]
[377567218,1754442740078,-949.49,0.0003726,14]
[377567219,1754442740088,-1054.54,0.0003726,14]
[377567220,1754442740097,-708.86,0.0003726,14]
[377567221,1754442740106,-2531.64,0.0003726,14]
[377567222,1754442740116,-400.0,0.0003726,14]
[377567223,1754442740125,-462.06,0.0003726,14]
[377567224,1754442740136,-1028.9,0.0003726,14]
[377567225,1754442740146,-400.0,0.0003726,14]
[377567226,1754442740156,-746.56,0.0003726,14]
[377567227,1754442740166,-931.48,0.0003726,14]
[377567228,1754442740176,-2720.87,0.0003726,14]
[377567229,1754442740186,-1876.24,0.0003726,14]
[377567230,1754442740196,-400.0,0.0003726,14]
[377567231,1754442740206,-400.0,0.0003726,14]
[377567232,1754442740216,-400.0,0.0003726,14]
[377567233,1754442740226,-1175.54,0.0003726,14]
[377567234,1754442740239,-3000.64,0.0003726,14]
[377567235,1754442740249,-633.94,0.0003726,14]
[377567236,1754442740261,-400.0,0.0003726,14]
[377567237,1754442740271,-1225.57,0.0003726,14]
[377567238,1754442740283,-2045.59,0.0003726,14]
[377567239,1754442740293,-1902.8,0.0003726,14]
[377567240,1754442740303,-870.66,0.0003726,14]
[377567241,1754442740313,-434.21,0.0003726,14]
[377567242,1754442740326,-998.47,0.0003726,14]
[377567243,1754442740335,-400.0,0.0003726,14]
[377567244,1754442740344,-1355.58,0.0003726,14]
[377567245,1754442740353,-400.0,0.0003726,14]
[377567246,1754442740363,-1564.58,0.0003726,14]
[377567247,1754442740373,-400.0,0.0003726,14]
[377567248,1754442740383,-1795.96,0.0003726,14]
[377567249,1754442740393,-1873.15,0.0003726,14]
[377567250,1754442740403,-2344.91,0.0003726,14]
[377567251,1754442740412,-400.0,0.0003726,14]
[377567252,1754442740422,-1545.05,0.0003726,14]
[377567253,1754442740431,-400.0,0.0003726,14]
[377567254,1754442740440,-1667.5,0.0003726,14]
[377567255,1754442740450,-1836.42,0.0003726,14]
[377567256,1754442740459,-400.0,0.0003726,14]
[377567257,1754442740469,-1036.37,0.0003726,14]
[377567258,1754442740479,-1706.89,0.0003726,14]
[377567259,1754442740488,-500.3,0.0003726,14]
[377567260,1754442740497,-400.0,0.0003726,14]
[377567261,1754442740507,-1544.77,0.0003726,14]
[377567262,1754442740516,-485.72,0.0003726,14]
[377567263,1754442740526,-1224.22,0.0003726,14]
[377567264,1754442740538,-2426.19,0.0003726,14]
[377567265,1754442740556,-1248.82,0.0003726,14]
[377567266,1754442740566,-2397.5,0.0003726,14]
[377567267,1754442740577,-1674.96,0.0003726,14]
[377567268,1754442740587,-571.75,0.0003726,14]
[377567269,1754442740597,-400.0,0.0003726,14]